fUSD/lending_fUSD_20240414
["ID","MTS","AMOUNT","RATE_DAILY","PERIOD"]
[322577579,1713081054010,-825.05980799,0.000425,2]
[322577580,1713081054020,-55000.0,0.000425,20]
[322577581,1713081054029,-162.68783336,0.00042528,30]
[322577582,1713081054039,-9148.32532792,0.00042541,11]
[322577583,1713081054049,-5000.0,0.00042541,10]
[322577584,1713081054058,-5000.0,0.00042541,12]
[322577585,1713081054068,-5000.0,0.00042541,11]
[322577586,1713081054078,-5000.0,0.00042541,11]
[322577587,1713081054090,-152.27,0.00042546,2]
[322577588,1713081054099,-156.83100348,0.0004268,30]
[322577589,1713081054109,-156.50584305,0.00042699,30]
[322577590,1713081054119,-302.0,0.0004273,4]
[322577591,1713081054130,-154.38291623,0.0004273,30]
[322577592,1713081054140,-835.0,0.0004274,7]
[322577593,1713081054150,-242.71617137,0.00042755,30]
[322577594,1713081054159,-150.0,0.00042759,2]
[322577595,1713081054169,-150.0,0.00042759,2]
[322577596,1713081054179,-150.0,0.00042759,2]
[322577597,1713081054190,-324.94,0.00042759,2]
[322577598,1713081054199,-300.0,0.00042759,2]
[322577599,1713081054210,-908.17,0.00042759,2]
[322577600,1713081054220,-150.0,0.00042759,2]
[322577601,1713081054230,-150.0,0.00042759,2]
[322577602,1713081054239,-824.7,0.00042759,2]
[322577603,1713081054250,-150.0,0.00042759,2]
[322577604,1713081054260,-150.0,0.00042759,2]
[322577605,1713081054270,-150.0,0.00042759,2]
[322577606,1713081054279,-908.17,0.00042759,2]
[322577607,1713081054289,-150.0,0.00042759,2]
[322577608,1713081054299,-908.17,0.00042759,2]
[322577609,1713081054310,-150.0,0.00042759,2]
[322577610,1713081054319,-908.17,0.00042759,2]
[322577611,1713081054329,-908.17,0.00042759,2]
[322577612,1713081054344,-908.17,0.00042759,2]
[322577613,1713081054353,-908.17,0.00042759,2]
[322577614,1713081054363,-908.17,0.00042759,2]
[322577615,1713081054372,-908.17,0.00042759,2]
[322577616,1713081054382,-412.35,0.00042759,2]
[322577617,1713081054392,-908.17,0.00042759,2]
[322577618,1713081054401,-908.17,0.00042759,2]
[322577619,1713081054411,-908.17,0.00042759,2]
[322577620,1713081054420,-412.35,0.00042759,2]
[322577621,1713081054430,-908.17,0.00042759,2]
[322577622,1713081054439,-908.17,0.00042759,2]
[322577623,1713081054450,-412.35,0.00042759,2]
[322577624,1713081054460,-908.17,0.00042759,2]
[322577625,1713081054470,-908.17,0.00042759,2]
[322577626,1713081054479,-412.35,0.00042759,2]
[322577627,1713081054488,-412.35,0.00042759,2]
[322577628,1713081054498,-412.35,0.00042759,2]
[322577629,1713081054507,-412.35,0.00042759,2]
[322577630,1713081054517,-412.35,0.00042759,2]
[322577631,1713081054526,-155.55,0.00042759,2]
[322577632,1713081054536,-152.05,0.00042759,2]
[322577633,1713081054546,-155.72346712,0.00042768,30]
[322577634,1713081054555,-156.46926548,0.00042805,30]
[322577635,1713081054564,-170.03737,0.00042832,30]
[322577636,1713081054574,-1943.226657,0.00042832,30]
[322577637,1713081054584,-1387.036605,0.00042832,30]
[322577638,1713081054593,-1015.129227,0.00042832,30]
[322577639,1713081054602,-200.0,0.00042832,30]
[322577640,1713081054611,-171.20687448,0.00042832,30]
[322577641,1713081054621,-155.72346712,0.00042834,30]
[322577642,1713081054631,-318.8130496,0.00042878,30]
[322577643,1713081054639,-962.9416945,0.0004289,10]
[322577644,1713081054649,-332.93477396,0.000429,30]
[322577645,1713081054659,-156.3106271,0.00042934,30]
[322577646,1713081054668,-171.20687448,0.00042964,30]
[322577647,1713081054678,-175.0,0.00042994,30]
[322577648,1713081054687,-100000.0,0.00043,43]
[322577649,1713081054697,-37503.75749285,0.00043,10]
[322577650,1713081054708,-1200.0,0.00043,44]
[322577651,1713081054719,-1050.0,0.00043,3]
[322577652,1713081054730,-156.46926548,0.00043006,30]
[322577653,1713081054740,-3888.49035311,0.0004302,2]
[322577654,1713081054750,-318.8130496,0.00043043,30]
[322577655,1713081054761,-154.99801969,0.0004309,30]
[322577656,1713081054770,-153.51371593,0.00043112,17]
[322577657,1713081054780,-289.82932389,0.00043146,30]
[322577658,1713081054794,-157.041416,0.00043198,67]
[322577659,1713081054804,-318.8130496,0.00043241,30]
[322577660,1713081054814,-256.13487886,0.00043241,30]
[322577661,1713081054823,-487.27,0.00043294,2]
[322577662,1713081054834,-153.32,0.000433,4]
[322577663,1713081054844,-153.32,0.000433,4]
[322577664,1713081054853,-153.32,0.000433,4]
[322577665,1713081054863,-153.32,0.000433,4]
[322577666,1713081054873,-153.32,0.000433,4]
[322577667,1713081054883,-153.32,0.000433,4]
[322577668,1713081054892,-153.32,0.000433,4]
[322577669,1713081054902,-153.32,0.000433,4]
[322577670,1713081054911,-6980.2,0.000433,4]
[322577671,1713081054921,-6980.2,0.000433,4]
[322577672,1713081054931,-6980.2,0.000433,4]
[322577673,1713081054940,-6980.2,0.000433,4]
[322577674,1713081054950,-6980.2,0.000433,4]
[322577675,1713081054959,-6980.2,0.000433,4]
[322577676,1713081054968,-6980.2,0.000433,4]
[322577677,1713081054978,-6980.2,0.000433,4]
[322577678,1713081054987,-6980.2,0.000433,4]
[322577679,1713081054996,-6980.2,0.000433,4]
[322577680,1713081055006,-6980.2,0.000433,4]
[322577681,1713081055015,-6980.2,0.000433,4]
[322577682,1713081055024,-6980.2,0.000433,4]
[322577683,1713081055034,-6980.2,0.000433,4]
[322577684,1713081055044,-6980.2,0.000433,4]
[322577685,1713081055054,-6980.2,0.000433,4]
[322577686,1713081055063,-6980.2,0.000433,4]
[322577687,1713081055073,-6980.2,0.000433,4]
[322577688,1713081055083,-6980.2,0.000433,4]
[322577689,1713081055095,-6980.2,0.000433,4]
[322577690,1713081055105,-318.8130496,0.00043308,30]
[322577691,1713081055115,-156.46926548,0.00043308,30]
[322577692,1713081055124,-1943.226657,0.00043367,30]
[322577693,1713081055134,-1387.036605,0.00043367,30]
[322577694,1713081055144,-1015.129227,0.00043367,30]
[322577695,1713081055153,-200.0,0.00043367,30]
[322577696,1713081055162,-604.0,0.00043448,7]
[322577697,1713081055173,-156.50584305,0.00043454,30]
[322577698,1713081055182,-289.82932389,0.0004346,30]
[322577699,1713081055192,-242.71617137,0.00043489,30]
[322577700,1713081055201,-157.041507,0.00043498,70]
[322577701,1713081055211,-2282.63,0.00043507,15]
[322577702,1713081055221,-152.27,0.00043513,2]
[322577703,1713081055230,-289.82932389,0.00043592,30]
[322577704,1713081055238,-2003.262052,0.000436,2]
[322577705,1713081055247,-289.82932389,0.00043625,30]
[322577706,1713081055257,-154.99801969,0.00043645,30]
[322577707,1713081055267,-289.82932389,0.0004374,30]
[322577708,1713081055276,-171.20687448,0.00043764,30]
[322577709,1713081055286,-3348.15882268,0.000438,2]
[322577710,1713081055295,-164.47174624,0.00043822,30]
[322577711,1713081055305,-289.82932389,0.00043828,30]
[322577712,1713081055315,-319.0,0.0004383,5]
[322577713,1713081055324,-1000.0,0.00043835,2]
[322577714,1713081055334,-1634.25,0.00043836,2]
[322577715,1713081055343,-9997.04,0.00043836,2]
[322577716,1713081055353,-155.72346712,0.0004388,30]
[322577717,1713081055362,-1943.226657,0.00043902,30]
[322577718,1713081055371,-1387.036605,0.00043902,30]
[322577719,1713081055381,-1015.129227,0.00043902,30]
[322577720,1713081055391,-200.0,0.00043902,30]
[322577721,1713081055400,-171.20687448,0.00043921,30]
[322577722,1713081055409,-156.46926548,0.00043988,30]
[322577723,1713081055419,-100000.0,0.00044,44]
[322577724,1713081055428,-12625.0,0.00044,2]
[322577725,1713081055437,-500.0,0.00044,10]
[322577726,1713081055447,-500.0,0.00044,2]
[322577727,1713081055456,-1200.0,0.00044,45]
[322577728,1713081055465,-1567.887579,0.00044,44]
[322577729,1713081055475,-332.93477396,0.00044034,30]
[322577730,1713081055484,-156.50584305,0.00044078,30]
[322577731,1713081055493,-153.57672703,0.00044088,30]
[322577732,1713081055502,-154.38291623,0.00044106,30]
[322577733,1713081055511,-835.0,0.00044109,7]
[322577734,1713081055521,-164.28918671,0.00044117,2]
[322577735,1713081055530,-256.13487886,0.00044124,30]
[322577736,1713081055539,-300.0,0.00044157,30]
[322577737,1713081055548,-318.8130496,0.00044163,30]
[322577738,1713081055557,-166.99392,0.00044178,4]
[322577739,1713081055566,-155.72346712,0.00044186,30]
[322577740,1713081055648,-157.041513,0.00044198,69]
[322577741,1713081055657,-154.38291623,0.00044201,30]
[322577742,1713081055666,-165.8815706,0.00044205,30]
[322577743,1713081055675,-242.71617137,0.00044216,30]
[322577744,1713081055684,-256.13487886,0.00044278,30]
[322577745,1713081055693,-165.8815706,0.0004428,30]
[322577746,1713081055702,-318.8130496,0.00044372,30]
[322577747,1713081055712,-432.98296717,0.00044407,30]
[322577748,1713081055721,-289.82932389,0.00044422,30]
[322577749,1713081055732,-1943.226657,0.00044438,30]
[322577750,1713081055742,-1387.036605,0.00044438,30]
[322577751,1713081055751,-1015.129227,0.00044438,30]
[322577752,1713081055761,-200.0,0.00044438,30]
[322577753,1713081055770,-242.71617137,0.00044453,30]
[322577754,1713081055782,-156.46926548,0.0004448,30]
[322577755,1713081055794,-152.27,0.0004448,2]
[322577756,1713081055808,-157.041507,0.00044498,73]
[322577757,1713081055818,-200604.13980838,0.0004451,10]
[322577758,1713081055827,-150.0,0.00044545,120]
[322577759,1713081055838,-1208.0,0.00044548,30]
[322577760,1713081055847,-171.20687448,0.00044564,30]
[322577761,1713081055856,-154.99801969,0.00044624,30]
[322577762,1713081055865,-242.71617137,0.0004463,30]
[322577763,1713081055876,-2262.09733858,0.0004465,20]
[322577764,1713081055886,-289.82932389,0.00044675,30]
[322577765,1713081055896,-156.46926548,0.00044699,30]
[322577766,1713081055905,-252.94,0.00044701,2]
[322577767,1713081055914,-332.93477396,0.00044798,30]
[322577768,1713081055924,-182.28907157,0.00044825,30]
[322577769,1713081055934,-176.79003434,0.00044839,30]
[322577770,1713081055944,-332.93477396,0.00044864,30]
[322577771,1713081055954,-256.13487886,0.00044946,30]
[322577772,1713081055965,-1943.226657,0.00044973,30]
[322577773,1713081055975,-1387.036605,0.00044973,30]
[322577774,1713081055984,-1015.129227,0.00044973,30]
[322577775,1713081055994,-200.0,0.00044973,30]
[322577776,1713081056003,-171.86705513,0.00044979,30]
[322577777,1713081056013,-5176.18996097,0.0004498,2]
[322577778,1713081056022,-5000.0,0.00044986,4]
[322577779,1713081056032,-100000.0,0.00045,45]
[322577780,1713081056041,-2160.43174939,0.00045,4]
[322577781,1713081056052,-168.82603476,0.00045,4]
[322577782,1713081056062,-130858.60875162,0.00045,2]
[322577783,1713081056074,-500.0,0.00045,10]
[322577784,1713081056091,-586.0,0.00045,2]
[322577785,1713081056100,-413.43,0.00045,4]
[322577786,1713081056110,-5000.0,0.00045,3]
[322577787,1713081056121,-464.75999411,0.00045,120]
[322577788,1713081056131,-21891.39363683,0.00045,30]
[322577789,1713081056142,-3841.62695784,0.00045,30]
[322577790,1713081056151,-150.0,0.00045,85]
[322577791,1713081056161,-155.062096,0.00045,30]
[322577792,1713081056170,-1200.0,0.00045,46]
[322577793,1713081056179,-699.69555457,0.00045,60]
[322577794,1713081056188,-5472.40174303,0.00045,10]
[322577795,1713081056197,-1000.0,0.00045,30]
[322577796,1713081056206,-1000.0,0.00045,31]
[322577797,1713081056215,-1100.0,0.00045,3]
[322577798,1713081056224,-242.71617137,0.00045026,30]
[322577799,1713081056233,-156.46926548,0.00045076,30]
[322577800,1713081056243,-289.82932389,0.00045112,30]
[322577801,1713081056252,-156.46926548,0.00045182,30]
[322577802,1713081056262,-157.041513,0.00045198,72]
[322577803,1713081056271,-318.8130496,0.00045205,30]
[322577804,1713081056280,-1000.0,0.00045205,2]
[322577805,1713081056289,-154.99801969,0.00045207,30]
[322577806,1713081056299,-156.88723511,0.00045274,30]
[322577807,1713081056308,-156.50584305,0.00045288,30]
[322577808,1713081056317,-318.8130496,0.00045302,30]
[322577809,1713081056326,-318.8130496,0.00045311,30]
[322577810,1713081056336,-156.3106271,0.00045332,30]
[322577811,1713081056345,-156.50584305,0.0004534,30]
[322577812,1713081056354,-156.50584305,0.00045404,30]
[322577813,1713081056364,-152.27,0.00045447,2]
[322577814,1713081056373,-1052.0,0.00045479,30]
[322577815,1713081056383,-157.041507,0.00045498,76]
[322577816,1713081056392,-150.0,0.000455,8]
[322577817,1713081056401,-154.99801969,0.00045521,30]
[322577818,1713081056411,-289.82932389,0.00045547,30]
[322577819,1713081056420,-487.27,0.00045558,2]
[322577820,1713081056429,-157.64176833,0.00045589,30]
[322577821,1713081056439,-150.0,0.00045596,120]
[322577822,1713081056448,-289.82932389,0.00045599,30]
[322577823,1713081056457,-256.13487886,0.00045608,30]
[322577824,1713081056470,-156.3106271,0.00045639,30]
[322577825,1713081056479,-154.38291623,0.00045667,30]
[322577826,1713081056488,-159.78997798,0.00045687,30]
[322577827,1713081056498,-289.82932389,0.00045695,30]
[322577828,1713081056507,-150.0,0.00045698,2]
[322577829,1713081056516,-155.46548869,0.00045813,30]
[322577830,1713081056525,-171.20687448,0.00045816,30]
[322577831,1713081056534,-154.38291623,0.00045837,30]
[322577832,1713081056543,-318.8130496,0.00045909,30]
[322577833,1713081056552,-150.0,0.00045911,2]
[322577834,1713081056561,-166.75619801,0.00045932,30]
[322577835,1713081056570,-156.3106271,0.0004598,30]
[322577836,1713081056579,-150.0,0.0004599,2]
[322577837,1713081056590,-150.0,0.00045994,2]
[322577838,1713081056599,-100000.0,0.00046,46]
[322577839,1713081056611,-2174.14277037,0.00046,2]
[322577840,1713081056621,-500.0,0.00046,20]
[322577841,1713081056630,-1000.0,0.00046,2]
[322577842,1713081056639,-2500.0,0.00046,31]
[322577843,1713081056649,-2555.96,0.00046,31]
[322577844,1713081056658,-150.0,0.00046,96]
[322577845,1713081056667,-1000.0,0.00046,120]
[322577846,1713081056676,-1000.0,0.00046,120]
[322577847,1713081056685,-1000.0,0.00046,120]
[322577848,1713081056694,-1000.0,0.00046,120]
[322577849,1713081056703,-1000.0,0.00046,120]
[322577850,1713081056713,-200000.0,0.00046,8]
[322577851,1713081056722,-1000.0,0.00046,60]
[322577852,1713081056732,-1000.0,0.00046,60]
[322577853,1713081056742,-1000.0,0.00046,60]
[322577854,1713081056751,-1000.0,0.00046,120]
[322577855,1713081056759,-150.0,0.00046,8]
[322577856,1713081056769,-610.96,0.00046,7]
[322577857,1713081056778,-489.69,0.00046,7]
[322577858,1713081056787,-150.0,0.00046047,2]
[322577859,1713081056798,-159.98891826,0.0004605,30]
[322577860,1713081056807,-332.93477396,0.00046056,30]
[322577861,1713081056817,-1141.23249882,0.0004606,10]
[322577862,1713081056826,-150.0,0.00046156,2]
[322577863,1713081056838,-156.3106271,0.00046191,30]
[322577864,1713081056848,-157.041513,0.00046198,75]
[322577865,1713081056858,-197.20008912,0.00046198,2]
[322577866,1713081056867,-200000.0,0.000462,8]
[322577867,1713081056878,-289.82932389,0.00046219,30]
[322577868,1713081056888,-150.0,0.00046226,2]
[322577869,1713081056897,-154.99801969,0.00046233,30]
[322577870,1713081056907,-154.99801969,0.00046238,30]
[322577871,1713081056916,-2282.63,0.00046247,15]
[322577872,1713081056925,-156.88723511,0.0004625,30]
[322577873,1713081056935,-332.93477396,0.00046303,30]
[322577874,1713081056944,-150.0,0.0004634,2]
[322577875,1713081056954,-150.0,0.00046367,2]
[322577876,1713081056963,-242.71617137,0.00046367,30]
[322577877,1713081056973,-153.57672703,0.00046383,30]
[322577878,1713081056982,-150.0,0.00046388,2]
[322577879,1713081056992,-171.20687448,0.00046397,30]
[322577880,1713081057001,-200000.0,0.000464,8]
[322577881,1713081057011,-995.64644437,0.000464,30]
[322577882,1713081057021,-995.64644437,0.000464,30]
[322577883,1713081057031,-995.64644437,0.000464,30]
[322577884,1713081057040,-995.64644437,0.000464,30]
[322577885,1713081057050,-995.64644437,0.000464,30]
[322577886,1713081057059,-995.64644437,0.000464,30]
[322577887,1713081057069,-995.64644437,0.000464,30]
[322577888,1713081057079,-995.64644437,0.000464,30]
[322577889,1713081057092,-995.64644437,0.000464,30]
[322577890,1713081057102,-995.64644437,0.000464,30]
[322577891,1713081057111,-995.64644437,0.000464,30]
[322577892,1713081057121,-995.64644437,0.000464,30]
[322577893,1713081057130,-995.64644437,0.000464,30]
[322577894,1713081057140,-995.64644437,0.000464,30]
[322577895,1713081057149,-995.64644437,0.000464,30]
[322577896,1713081057159,-995.64644437,0.000464,30]
[322577897,1713081057168,-995.64644437,0.000464,30]
[322577898,1713081057178,-995.64644437,0.000464,30]
[322577899,1713081057188,-995.64644437,0.000464,30]
[322577900,1713081057197,-996.14,0.000464,30]
[322577901,1713081057207,-404.49902647,0.000464,30]
[322577902,1713081057216,-404.49902647,0.000464,30]
[322577903,1713081057225,-404.49902647,0.000464,30]
[322577904,1713081057235,-404.49902647,0.000464,30]
[322577905,1713081057244,-404.49902647,0.000464,30]
[322577906,1713081057253,-404.49902647,0.000464,30]
[322577907,1713081057263,-404.49902647,0.000464,30]
[322577908,1713081057273,-404.49902647,0.000464,30]
[322577909,1713081057283,-404.49902647,0.000464,30]
[322577910,1713081057292,-404.49902647,0.000464,30]
[322577911,1713081057302,-404.49902647,0.000464,30]
[322577912,1713081057311,-404.49902647,0.000464,30]
[322577913,1713081057321,-404.49902647,0.000464,30]
[322577914,1713081057331,-404.49902647,0.000464,30]
[322577915,1713081057343,-404.49902647,0.000464,30]
[322577916,1713081057353,-404.49902647,0.000464,30]
[322577917,1713081057364,-404.49902647,0.000464,30]
[322577918,1713081057375,-404.49902647,0.000464,30]
[322577919,1713081057385,-404.49902647,0.000464,30]
[322577920,1713081057394,-404.99,0.000464,30]
[322577921,1713081057404,-153.13962035,0.000464,30]
[322577922,1713081057413,-153.13962035,0.000464,30]
[322577923,1713081057423,-153.13962035,0.000464,30]
[322577924,1713081057432,-153.13962035,0.000464,30]
[322577925,1713081057442,-153.13962035,0.000464,30]
[322577926,1713081057451,-153.13962035,0.000464,30]
[322577927,1713081057460,-153.13962035,0.000464,30]
[322577928,1713081057470,-153.13962035,0.000464,30]
[322577929,1713081057479,-153.13962035,0.000464,30]
[322577930,1713081057488,-153.63,0.000464,30]
[322577931,1713081057497,-373.06851059,0.000464,30]
[322577932,1713081057507,-373.06851059,0.000464,30]
[322577933,1713081057516,-373.06851059,0.000464,30]
[322577934,1713081057525,-373.06851059,0.000464,30]
[322577935,1713081057535,-373.06851059,0.000464,30]
[322577936,1713081057544,-373.06851059,0.000464,30]
[322577937,1713081057553,-373.06851059,0.000464,30]
[322577938,1713081057562,-373.06851059,0.000464,30]
[322577939,1713081057572,-373.06851059,0.000464,30]
[322577940,1713081057581,-373.06851059,0.000464,30]
[322577941,1713081057598,-373.06851059,0.000464,30]
[322577942,1713081057608,-373.06851059,0.000464,30]
[322577943,1713081057618,-373.06851059,0.000464,30]
[322577944,1713081057628,-373.06851059,0.000464,30]
[322577945,1713081057639,-373.06851059,0.000464,30]
[322577946,1713081057649,-373.06851059,0.000464,30]
[322577947,1713081057659,-373.06851059,0.000464,30]
[322577948,1713081057668,-373.06851059,0.000464,30]
[322577949,1713081057677,-373.06851059,0.000464,30]
[322577950,1713081057687,-373.56,0.000464,30]
[322577951,1713081057697,-150.0,0.00046404,2]
[322577952,1713081057707,-152.27,0.00046414,2]
[322577953,1713081057717,-156.3106271,0.00046433,30]
[322577954,1713081057726,-150.0,0.00046439,2]
[322577955,1713081057736,-150.0,0.00046469,2]
[322577956,1713081057746,-157.041416,0.00046498,70]
[322577957,1713081057755,-10285.70732705,0.000465,120]
[322577958,1713081057765,-153.32,0.000465,5]
[322577959,1713081057774,-153.32,0.000465,5]
[322577960,1713081057784,-153.32,0.000465,5]
[322577961,1713081057794,-153.32,0.000465,5]
[322577962,1713081057807,-153.32,0.000465,5]
[322577963,1713081057816,-153.32,0.000465,5]
[322577964,1713081057827,-153.32,0.000465,5]
[322577965,1713081057839,-153.32,0.000465,5]
[322577966,1713081057848,-150.0,0.000465,8]
[322577967,1713081057858,-37527.0,0.000465,2]
[322577968,1713081057868,-6980.2,0.000465,5]
[322577969,1713081057878,-6980.2,0.000465,5]
[322577970,1713081057887,-6980.2,0.000465,5]
[322577971,1713081057897,-6980.2,0.000465,5]
[322577972,1713081057907,-6980.2,0.000465,5]
[322577973,1713081057917,-6980.2,0.000465,5]
[322577974,1713081057926,-6980.2,0.000465,5]
[322577975,1713081057936,-6980.2,0.000465,5]
[322577976,1713081057945,-6980.2,0.000465,5]
[322577977,1713081057954,-6980.2,0.000465,5]
[322577978,1713081057964,-6980.2,0.000465,5]
[322577979,1713081057974,-6980.2,0.000465,5]
[322577980,1713081057983,-6980.2,0.000465,5]
[322577981,1713081057992,-6980.2,0.000465,5]
[322577982,1713081058002,-6980.2,0.000465,5]
[322577983,1713081058011,-6980.2,0.000465,5]
[322577984,1713081058021,-6980.2,0.000465,5]
[322577985,1713081058030,-6980.2,0.000465,5]
[322577986,1713081058040,-6980.2,0.000465,5]
[322577987,1713081058049,-6980.2,0.000465,5]
[322577988,1713081058059,-171286.3048133,0.0004652,2]
[322577989,1713081058068,-150.0,0.00046529,2]
[322577990,1713081058078,-500.0,0.0004653,30]
[322577991,1713081058089,-166.66666666,0.00046553,30]
[322577992,1713081058100,-156.46926548,0.00046553,30]
[322577993,1713081058109,-1000.0,0.00046575,2]
[322577994,1713081058118,-5800.0,0.00046595,7]
[322577995,1713081058128,-150.0,0.00046596,7]
[322577996,1713081058138,-2396234.63264109,0.000466,61]
[322577997,1713081058148,-1000.0,0.000466,4]
[322577998,1713081058158,-5800.0,0.000466,7]
[322577999,1713081058167,-1513.25356655,0.000466,7]
[322578000,1713081058177,-189000.0,0.000466,8]
[322578001,1713081058186,-150.0,0.000466,7]
[322578002,1713081058196,-242.71617137,0.00046654,30]
[322578003,1713081058206,-242.71617137,0.00046661,30]
[322578004,1713081058216,-150.0,0.00046678,7]
[322578005,1713081058225,-289.82932389,0.00046685,30]
[322578006,1713081058235,-166.66666668,0.00046686,30]
[322578007,1713081058245,-156.46926548,0.00046689,30]
[322578008,1713081058254,-289.82932389,0.00046692,30]
[322578009,1713081058263,-164.19731279,0.00046693,30]
[322578010,1713081058273,-153.51371593,0.00046708,22]
[322578011,1713081058282,-155.16,0.00046736,2]
[322578012,1713081058292,-152.42,0.00046736,2]
[322578013,1713081058301,-318.8130496,0.00046781,30]
[322578014,1713081058310,-150.0,0.00046791,7]
[322578015,1713081058320,-17483.0,0.000468,120]
[322578016,1713081058329,-1894.556,0.000468,50]
[322578017,1713081058340,-150.0,0.00046802,7]
[322578018,1713081058350,-150.0,0.00046821,7]
[322578019,1713081058358,-150.0,0.00046822,7]
[322578020,1713081058367,-150.0,0.00046825,7]
[322578021,1713081058377,-150.0,0.00046838,7]
[322578022,1713081058387,-150.0,0.00046847,7]
[322578023,1713081058396,-1052.0,0.00046849,30]
[322578024,1713081058406,-150.0,0.0004685,7]
[322578025,1713081058417,-150.0,0.0004685,7]
[322578026,1713081058427,-171.20687448,0.00046863,30]
[322578027,1713081058436,-257.5424929,0.00046871,7]
[322578028,1713081058446,-171.20687448,0.00046877,30]
[322578029,1713081058456,-155.63354506,0.00046878,63]
[322578030,1713081058466,-242.71617137,0.00046893,30]
[322578031,1713081058476,-482.0,0.000469,34]
[322578032,1713081058486,-964.0,0.000469,34]
[322578033,1713081058496,-964.0,0.000469,34]
[322578034,1713081058506,-202.92564791,0.00046923,7]
[322578035,1713081058515,-150.0,0.00046931,7]
[322578036,1713081058524,-159.98891826,0.00046947,30]
[322578037,1713081058534,-289.82932389,0.00046947,30]
[322578038,1713081058543,-332.93477396,0.00046979,30]
[322578039,1713081058553,-154.99801969,0.00046991,30]
[322578040,1713081058563,-1000.0,0.00046999,120]
[322578041,1713081058574,-100000.0,0.00047,47]
[322578042,1713081058583,-9015.0,0.00047,120]
[322578043,1713081058594,-22751.47166072,0.00047,7]
[322578044,1713081058604,-8753.46,0.00047,30]
[322578045,1713081058614,-850.0,0.00047,120]
[322578046,1713081058624,-164.31,0.00047,10]
[322578047,1713081058635,-1200.0,0.00047,48]
[322578048,1713081058645,-200.0,0.00047,108]
[322578049,1713081058655,-1600.0,0.00047,120]
[322578050,1713081058665,-232.91877884,0.00047,30]
[322578051,1713081058675,-500.0,0.00047,20]
[322578052,1713081058685,-1049.0,0.00047,120]
[322578053,1713081058695,-1175.58479218,0.00047,7]
[322578054,1713081058705,-200.0,0.00047,7]
[322578055,1713081058716,-11147.25950289,0.00047,2]
[322578056,1713081058726,-1833.32041196,0.00047,10]
[322578057,1713081058735,-13415.85376187,0.00047,4]
[322578058,1713081058745,-507.79199758,0.00047,120]
[322578059,1713081058755,-3356.81383592,0.00047,4]
[322578060,1713081058766,-170.56929163,0.00047,7]
[322578061,1713081058776,-10403.11145729,0.00047,5]
[322578062,1713081058786,-185.19343132,0.00047,2]
[322578063,1713081058797,-336.29333367,0.00047,30]
[322578064,1713081058808,-1161.20716343,0.00047,30]
[322578065,1713081058818,-1000.0,0.00047,120]
[322578066,1713081058828,-150.0,0.00047,9]
[322578067,1713081058839,-1000.0,0.00047,60]
[322578068,1713081058849,-1150.0,0.00047,3]
[322578069,1713081058859,-1630.9862441,0.00047005,2]
[322578070,1713081058869,-4870.5887238,0.00047005,2]
[322578071,1713081058880,-1869.5638603,0.00047005,2]
[322578072,1713081058890,-4172.5109854,0.00047005,2]
[322578073,1713081058900,-272.1572165,0.00047006,2]
[322578074,1713081058910,-332.93477396,0.00047014,30]
[322578075,1713081058919,-22154.5708665,0.00047037,2]
[322578076,1713081058929,-156.88723511,0.00047062,30]
[322578077,1713081058939,-289.82932389,0.00047091,30]
[322578078,1713081058949,-256.13487886,0.00047123,30]